fUST/lending_fUST_20240418
["ID","MTS","AMOUNT","RATE_DAILY","PERIOD"]
[322846794,1713400156117,-937.89373734,0.00021748,2]
[322846795,1713400156144,-602.61216035,0.00021748,2]
[322846796,1713400156173,-272.32070711,0.00021749,2]
[322846797,1713400156198,-157.5764134,0.00021749,2]
[322846798,1713400156225,-672.6914059,0.00021749,2]
[322846799,1713400156250,-300.0,0.00021766,2]
[322846800,1713400156277,-119.47647072,0.00021767,2]
[322846801,1713400169226,-10305.30449227,0.00021767,2]
[322846802,1713400169247,-638.52670818,0.00023805,2]
[322846803,1713400169268,-420.0,0.00023943,2]
[322846804,1713400169288,-1786.43379092,0.00024375,2]
[322846805,1713400169309,-620.92633541,0.00024995,2]
[322846806,1713400169331,-669.37280601,0.00025873,2]
[322846807,1713400169351,-5117.8223648,0.00025875,10]
[322846808,1713400169376,-200.0,0.00025973,2]
[322846809,1713400169396,-620.04631677,0.00026245,2]
[322846810,1713400169417,-587.0,0.00026337,2]
[322846811,1713400169438,-688.59429255,0.00026468,2]
[322846812,1713400169459,-200.0,0.00026484,2]
[322846813,1713400188779,477.79163155,0.00023775,2]
[322847080,1713400347596,-713.16422906,0.00023775,2]
[322847081,1713400347625,-300.0,0.00027396,2]
[322847082,1713400347653,-300.0,0.00027396,2]
[322847083,1713400347682,-212.187932,0.00027397,2]
[322847084,1713400347710,-157.519236,0.00027397,2]
[322847085,1713400347738,-380.905766,0.00027397,2]
[322847086,1713400347767,-171.04874,0.00027397,2]
[322847087,1713400347794,-1000.0,0.00027397,2]
[322847088,1713400347820,-800.52882504,0.00027873,2]
[322847089,1713400347846,-166.666666,0.00028225,2]
[322847090,1713400347873,-1190.95586061,0.00028775,2]
[322847091,1713400347900,-417.0,0.00028879,2]
[322847092,1713400347927,-166.666666,0.00028994,2]
[322847093,1713400347954,-167.022494,0.00029388,2]
[322847094,1713400348102,-168.658078,0.00029495,2]
[322847095,1713400348131,-163.644784,0.00029636,2]
[322847096,1713400348157,-200.0,0.00029735,15]
[322847097,1713400348185,-166.666666,0.00029764,2]
[322847098,1713400348212,-254.5820789,0.00029815,2]
[322847099,1713400660177,-521.03498526,0.00025772,2]
[322847100,1713400660204,-272.32070711,0.00025772,2]
[322847101,1713400660233,-396.98528687,0.00025773,2]
[322847102,1713400660259,-917.36879113,0.000273,2]
[322847103,1713400660286,-228.682063,0.00027397,2]
[322847104,1713400660313,-755.44188678,0.000274,2]
[322847105,1713400660340,-166.666666,0.00029921,2]
[322847107,1713400882633,-264.65685792,0.00025773,2]
[322847108,1713400882659,-413.60872989,0.000299,2]
[322847110,1713400922574,-4156.32529796,0.0003,2]
[322847111,1713400922600,-185.0960797,0.00030429,2]
[322847112,1713400922626,-586.0,0.000306,2]
[322847113,1713400922653,-164.428695,0.00030615,2]
[322847114,1713400922679,-166.666666,0.00030737,2]
[322847115,1713400922708,-264.65685792,0.00030773,2]
[322847116,1713400922734,-320.4553623,0.00030847,10]
[322847117,1713400922760,-200.0,0.00030848,15]
[322847118,1713400922786,-400.0,0.00030889,2]
[322847119,1713400922813,-7352.9864779,0.0003089,2]
[322847120,1713400922839,-699.32047719,0.00030925,4]
[322847121,1713400922866,-323.62677612,0.00031197,4]
[322847122,1713400922892,-199.22367418,0.00031198,30]
[322847123,1713400922918,-153.0,0.000312,2]
[322847124,1713400922945,-153.0,0.000312,2]
[322847125,1713400922978,-153.0,0.000312,2]
[322847126,1713400923006,-153.0,0.000312,2]
[322847127,1713400923032,-153.0,0.000312,2]
[322847128,1713400923058,-153.0,0.000312,2]
[322847129,1713400923084,-153.0,0.000312,2]
[322847130,1713400923110,-153.0,0.000312,2]
[322847131,1713400923136,-153.0,0.000312,2]
[322847132,1713400923162,-412.8252268,0.00031224,2]
[322847133,1713400923189,-153.0,0.00031224,2]
[322847134,1713400923220,-153.0,0.00031224,2]
[322847135,1713400923248,-153.0,0.00031224,2]
[322847136,1713400923275,-153.0,0.00031534,2]
[322847137,1713400923302,-166.666666,0.00031553,2]
[322847138,1713400923328,-417.0,0.00031879,2]
[322847139,1713400923514,-585.70120525,0.000319,5]
[322847140,1713400923541,-5000.0,0.00032,2]
[322847141,1713400923567,-390.0,0.00032,30]
[322847142,1713400923872,272.32070711,0.00029999,2]
[322847143,1713400923973,308.0,0.00032,2]
[322847144,1713400959571,-2866.94638613,0.00032,2]
[322847145,1713400959597,-166.666666,0.00032369,2]
[322847146,1713400959623,-1000.0,0.000325,2]
[322847147,1713400959649,-153.0,0.00032868,2]
[322847148,1713400959675,-267.8118792,0.00032868,2]
[322847149,1713400959701,-153.0,0.00032868,2]
[322847150,1713400959727,-153.0,0.00032868,2]
[322847151,1713400959754,-153.0,0.00032868,2]
[322847152,1713400959780,-153.0,0.00032868,2]
[322847153,1713400959807,-153.0,0.00032868,2]
[322847154,1713400959832,-153.0,0.00032868,2]
[322847155,1713400959858,-153.0,0.00032868,2]
[322847156,1713400959884,-153.0,0.00032868,2]
[322847157,1713400959911,-153.0,0.00032868,2]
[322847158,1713400959937,-153.0,0.00032868,2]
[322847159,1713400959966,-153.0,0.00032868,2]
[322847160,1713400959992,-153.0,0.00032868,2]
[322847161,1713400960017,-153.0,0.00032868,2]
[322847162,1713400960042,-153.0,0.00032868,2]
[322847163,1713400960067,-153.0,0.00032868,2]
[322847164,1713400960093,-153.0,0.00032868,2]
[322847165,1713400960118,-153.0,0.00032868,2]
[322847166,1713400960143,-153.0,0.00032868,2]
[322847167,1713400960169,-153.0,0.00032868,2]
[322847168,1713400960195,-153.0,0.00032868,2]
[322847169,1713400960338,-153.0,0.00032868,2]
[322847170,1713400960364,-1000.0,0.000329,6]
[322847171,1713400960392,-340.2450569,0.000329,2]
[322847172,1713400960421,-3075.74,0.00032999,7]
[322847173,1713400960447,-8715.97098873,0.00033,30]
[322847174,1713400960473,-4848.21770199,0.00033,5]
[322847175,1713400960500,-3596.75378199,0.00033,30]
[322847176,1713400960527,-968.8817,0.00033,2]
[322847177,1713400960552,-168.905224,0.00033,2]
[322847178,1713400960579,-153.0,0.00033,2]
[322847179,1713400960606,-153.0,0.00033,2]
[322847180,1713400960632,-153.0,0.00033061,2]
[322847181,1713400960659,-153.0,0.00033061,2]
[322847182,1713400960685,-153.0,0.00033061,2]
[322847183,1713400960711,-107.44269396,0.00033061,2]
[322847185,1713401011396,-153.0,0.00033,2]
[322847186,1713401011423,-400.0,0.0003306,2]
[322847187,1713401011448,-45.55730604,0.00033061,2]
[322847188,1713401011474,-153.0,0.00033061,2]
[322847189,1713401011499,-153.0,0.00033061,2]
[322847190,1713401011526,-153.0,0.00033061,2]
[322847191,1713401011550,-153.0,0.00033061,2]
[322847192,1713401011575,-153.0,0.00033061,2]
[322847193,1713401011600,-153.0,0.00033061,2]
[322847194,1713401011625,-153.0,0.00033061,2]
[322847195,1713401011797,-153.0,0.00033061,2]
[322847196,1713401011822,-153.0,0.00033061,2]
[322847197,1713401011849,-153.0,0.00033061,2]
[322847198,1713401011874,-153.0,0.00033061,2]
[322847199,1713401011899,-153.0,0.00033061,2]
[322847200,1713401011925,-4848.21770199,0.00033061,5]
[322847201,1713401011951,-212.187932,0.00033165,2]
[322847202,1713401011978,-380.905766,0.00033165,2]
[322847203,1713401012003,-228.682063,0.00033165,2]
[322847204,1713401012028,-166.666666,0.00033184,2]
[322847205,1713401012055,-153.0,0.0003339,2]
[322847206,1713401012080,-153.0,0.0003339,2]
[322847207,1713401012105,-153.0,0.0003339,2]
[322847208,1713401012129,-153.0,0.0003339,2]
[322847209,1713401012156,-153.0,0.0003339,2]
[322847210,1713401012182,-153.0,0.0003339,2]
[322847211,1713401012207,-153.0,0.0003339,2]
[322847212,1713401012233,-157.519236,0.00033486,2]
[322847213,1713401012259,-2000.0,0.0003359,2]
[322847214,1713401012284,-153.0,0.000336,2]
[322847215,1713401012310,-153.0,0.000336,2]
[322847216,1713401012336,-153.0,0.000336,2]
[322847217,1713401012361,-153.0,0.0003369,2]
[322847218,1713401012385,-153.0,0.0003369,2]
[322847219,1713401012411,-153.0,0.0003369,2]
[322847220,1713401012436,-153.0,0.0003369,2]
[322847221,1713401012463,-153.0,0.0003369,2]
[322847222,1713401012489,-153.0,0.0003369,2]
[322847223,1713401012515,-153.0,0.0003369,2]
[322847224,1713401012543,-153.0,0.0003369,2]
[322847225,1713401012569,-153.0,0.0003369,2]
[322847226,1713401012594,-264.0231095,0.0003369,2]
[322847227,1713401012620,-153.0,0.0003369,2]
[322847228,1713401012646,-153.0,0.0003369,2]
[322847229,1713401012671,-153.0,0.0003369,2]
[322847230,1713401012697,-153.0,0.0003369,2]
[322847231,1713401012722,-153.0,0.0003369,2]
[322847232,1713401012747,-153.0,0.0003369,2]
[322847233,1713401012773,-153.0,0.0003369,2]
[322847234,1713401012799,-153.0,0.0003369,2]
[322847235,1713401012824,-161.3385133,0.0003369,2]
[322847236,1713401012850,-309.62845823,0.00033826,4]
[322847237,1713401012875,-228.68455533,0.00033998,2]
[322847238,1713401012902,-4534.75598547,0.00034,2]
[322847239,1713401012927,-177.0,0.00034,8]
[322847240,1713401012952,-491.0,0.00034,2]
[322847241,1713401012980,-465.62426375,0.00034,4]
[322847243,1713401098183,-150.0,0.0003159,2]
[322847244,1713401098209,-377.93953352,0.0003296,2]
[322847245,1713401098235,-2000.0,0.00032961,2]
[322847246,1713401098263,-2947.58,0.00032999,7]
[322847247,1713401098288,-312.95087831,0.00033998,4]
[322847248,1713401098313,-365.88194813,0.00033999,4]
[322847249,1713401098338,-590.9869465,0.00033999,4]
[322847250,1713401098363,-4848.21770199,0.00034,5]
[322847251,1713401110219,-968.0,0.000305,2]
[322847252,1713401110245,-465.62426375,0.00034,4]
[322847253,1713401132882,-417.0,0.0002888,2]
[322847254,1713401132907,-417.0,0.0003188,2]
[322847255,1713401132933,-4848.21770199,0.00034,5]
[322847256,1713401194551,-190.969138,0.00027397,2]
[322847257,1713401194579,-190.969138,0.00033165,2]
[322847258,1713401194604,-1000.0,0.00034,7]
[322847259,1713401194630,-313.44496434,0.00034,5]
[322847260,1713401194656,-465.62426375,0.00034,4]
[322847261,1713401223037,-167.022494,0.0003334,2]
[322847262,1713401223196,-166.666666,0.00034,2]
[322847263,1713401223227,-5000.0,0.00034127,2]
[322847264,1713401223253,-150.0,0.0003425,4]
[322847265,1713401223279,-150.0,0.00034428,2]
[322847266,1713401223306,-400.0,0.00034511,2]
[322847267,1713401223332,-203.2761986,0.00034512,2]
[322847268,1713401223358,-203.2761986,0.00034512,2]
[322847269,1713401223384,-203.2761986,0.00034512,2]
[322847270,1713401223411,-203.2761986,0.00034512,2]
[322847271,1713401223436,-203.2761986,0.00034512,2]
[322847272,1713401223463,-406.5523972,0.00034512,2]
[322847273,1713401223488,-203.2761986,0.00034512,2]
[322847274,1713401223514,-203.2761986,0.00034512,2]
[322847275,1713401223540,-203.2761986,0.00034512,2]
[322847276,1713401223567,-203.2761986,0.00034512,2]
[322847277,1713401223593,-203.2761986,0.00034512,2]
[322847278,1713401223619,-203.2761986,0.00034512,2]
[322847279,1713401223645,-203.2761986,0.00034512,2]
[322847280,1713401223671,-203.2761986,0.00034512,2]
[322847281,1713401223696,-203.2761986,0.00034512,2]
[322847282,1713401223723,-203.2761986,0.00034512,2]
[322847283,1713401223749,-203.2761986,0.00034512,2]
[322847284,1713401223774,-203.2761986,0.00034512,2]
[322847285,1713401223799,-203.2761986,0.00034512,2]
[322847286,1713401223824,-203.2761986,0.00034512,2]
[322847287,1713401223850,-203.2761986,0.00034512,2]
[322847288,1713401223875,-203.2761986,0.00034512,2]
[322847289,1713401223900,-203.2761986,0.00034512,2]
[322847290,1713401223924,-203.2761986,0.00034512,2]
[322847291,1713401223950,-203.2761986,0.00034512,2]
[322847292,1713401223975,-512.48855462,0.00034564,7]
[322847293,1713401224000,-2000.0,0.00034565,2]
[322847294,1713401224039,-783.87866091,0.00034629,4]
[322847295,1713401224073,-937.19103165,0.00034662,4]
[322847296,1713401224102,-206.50498726,0.00034662,4]
[322847297,1713401224130,-157.4992408,0.00034662,4]
[322847298,1713401224158,-889.89484867,0.00034662,4]
[322847299,1713401224186,-151.0,0.00034662,2]
[322847300,1713401224214,-459.85599,0.00034662,2]
[322847301,1713401224241,-459.85599,0.00034662,2]
[322847302,1713401224271,-2947.58,0.00034662,7]
[322847303,1713401224299,-355.14814467,0.00034663,4]
[322847304,1713401224325,-206.0,0.00034664,2]
[322847305,1713401224352,-361.60536711,0.00034664,4]
[322847306,1713401224379,-315.79282226,0.00034664,4]
[322847307,1713401224406,-1562.5,0.00034664,4]
[322847308,1713401224432,-231.98241699,0.00034664,4]
[322847309,1713401224459,-227.98562533,0.00034664,2]
[322847310,1713401224485,-545.69121745,0.00034664,4]
[322847311,1713401224512,-232.78546639,0.00034664,2]
[322847312,1713401224539,-2125.76560283,0.00034664,4]
[322847313,1713401224565,-203.83136061,0.00034664,4]
[322847314,1713401224593,-243.24834116,0.00034664,4]
[322847315,1713401224623,-181.35319093,0.00034664,4]
[322847316,1713401224650,-1517.53399008,0.00034664,4]
[322847317,1713401224676,-521.0,0.00034664,4]
[322847318,1713401224705,-201.76,0.00034664,4]
[322847319,1713401224850,-407.86313878,0.00034664,4]
[322847320,1713401224878,-988.1157668,0.00034664,4]
[322847321,1713401232290,-402.37680032,0.00034664,4]
[322847322,1713401232318,-354.39971412,0.00034664,4]
[322847323,1713401232344,-270.03026476,0.00034664,4]
[322847324,1713401232371,-301.35961672,0.00034664,4]
[322847325,1713401232397,-300.65867133,0.00034664,4]
[322847326,1713401232425,-203.22671641,0.00034664,4]
[322847327,1713401232451,-156.20487262,0.00034664,4]
[322847328,1713401232481,-277.60171443,0.00034664,4]
[322847329,1713401232508,-237.92490957,0.00034664,4]
[322847330,1713401232535,-158.76974363,0.00034664,4]
[322847331,1713401232561,-156.98200501,0.00034664,4]
[322847332,1713401232588,-407.92040002,0.00034664,4]
[322847333,1713401232614,-231.68966445,0.00034664,4]
[322847334,1713401232639,-942.08246958,0.00034664,4]
[322847335,1713401232665,-240.83271829,0.00034664,4]
[322847336,1713401232692,-503.92324481,0.00034664,4]
[322847337,1713401232721,-151.0,0.00034664,2]
[322847338,1713401232746,-459.85599,0.00034664,2]
[322847339,1713401232772,-459.85599,0.00034664,2]
[322847340,1713401232799,-459.85599,0.00034664,2]
[322847341,1713401232827,-459.85599,0.00034664,2]
[322847342,1713401232853,-156.80009659,0.00034664,10]
[322847343,1713401232880,-523.80732363,0.00034664,4]
[322847344,1713401232907,-376.75006423,0.00034664,4]
[322847345,1713401232933,-465.62426375,0.00034664,4]
[322847346,1713401232961,-1452.59248734,0.00034665,4]
[322847347,1713401232989,-227.832689,0.00034665,2]
[322847348,1713401233017,-500.0,0.00034665,7]
[322847349,1713401233044,-500.0,0.00034665,7]
[322847350,1713401233073,-500.0,0.00034665,7]
[322847351,1713401233099,-500.0,0.00034665,7]
[322847352,1713401233124,-500.0,0.00034665,7]
[322847353,1713401233265,-500.0,0.00034665,7]
[322847354,1713401233291,-500.0,0.00034665,7]
[322847355,1713401233317,-500.0,0.00034665,7]
[322847356,1713401233343,-500.0,0.00034665,7]
[322847357,1713401233370,-526.08367309,0.00034665,7]
[322847358,1713401233395,-268.78128529,0.00034665,7]
[322847359,1713401233422,-500.0,0.00034665,7]
[322847360,1713401233449,-500.0,0.00034665,7]
[322847361,1713401233483,-500.0,0.00034665,7]
[322847362,1713401233510,-202.31462968,0.00034665,7]
[322847363,1713401233536,-500.0,0.00034665,7]
[322847364,1713401233561,-500.0,0.00034665,7]
[322847365,1713401233588,-169.56485256,0.00034665,7]
[322847366,1713401233617,-2947.58,0.00034665,7]
[322847367,1713401233643,-9800.44322767,0.00034666,2]
[322847368,1713401236943,-31254.5820789,0.00034666,2]
[322847369,1713401244969,-1278.53063654,0.00034666,2]
[322847370,1713401244995,-459.85599,0.00034666,2]
[322847371,1713401245021,-459.85599,0.00034666,2]
[322847372,1713401245047,-417.0,0.0003488,2]
[322847373,1713401245073,-155.28288805,0.00034895,4]
[322847374,1713401245100,-259.80965516,0.00034899,2]
[322847375,1713401245129,-2947.58,0.00034998,7]
[322847376,1713401245155,-383.58,0.00034999,2]
[322847377,1713401245181,-383.58,0.00034999,2]
[322847378,1713401245207,-383.58,0.00034999,2]
[322847379,1713401245232,-383.58,0.00034999,2]
[322847380,1713401245257,-459.85599,0.00034999,2]
[322847381,1713401245283,-459.85599,0.00034999,2]
[322847382,1713401245311,-2947.58,0.00034999,7]
[322847383,1713401245338,-2947.58,0.00034999,7]
[322847384,1713401245365,-2947.58,0.00034999,7]
[322847385,1713401245393,-2947.58,0.00034999,7]
[322847386,1713401245419,-266.7220136,0.00034999,7]
[322847387,1713401245445,-500.0,0.00034999,7]
[322847388,1713401245471,-488.31189336,0.00034999,7]
[322847389,1713401245497,-500.0,0.00034999,7]
[322847390,1713401245523,-439.67218834,0.00034999,7]
[322847391,1713401245549,-500.0,0.00034999,7]
[322847392,1713401245574,-270.08590119,0.00034999,7]
[322847393,1713401245600,-500.0,0.00034999,7]
[322847394,1713401245625,-500.0,0.00034999,7]
[322847395,1713401245651,-163.54227023,0.00034999,7]
[322847396,1713401245676,-500.0,0.00034999,7]
[322847397,1713401245701,-500.0,0.00034999,7]
[322847398,1713401245728,-208.09724671,0.00034999,7]
[322847399,1713401245754,-597.24868455,0.00035,2]
[322847400,1713401245781,-154.8915759,0.00035,4]
[322847401,1713401245806,-4943.74316527,0.00035,30]
[322847476,1713401438618,-1965.06,0.00032999,7]
[322847477,1713401438627,-166.666666,0.00033435,2]
[322847478,1713401438636,-465.62426375,0.00034345,4]
[322847479,1713401438645,-166.666666,0.00034346,2]
[322847480,1713401438654,-1965.06,0.00034511,7]
[322847481,1713401438663,-400.0,0.00034664,2]
[322847482,1713401438672,-1965.06,0.00034665,7]
[322847483,1713401438681,-1965.06,0.00034665,7]
[322847485,1713401438690,-1691.77353775,0.000349,2]
[322847494,1713401440741,-254.49938725,0.000349,2]
[322847526,1713401443793,-53.727075,0.000349,2]
[322847528,1713401443802,-222.347925,0.00034999,2]
[322847552,1713402556119,-157.519236,0.00027397,2]
[322847553,1713402556140,-342.815189,0.00027397,2]
[322847554,1713402557098,-185.0,0.0002898,2]
[322847555,1713402601463,134.12542888,0.0002688,2]
[322847556,1713402601483,444.13157167,0.0002688,2]
[322847576,1713402631820,-477.47804497,0.0002688,2]
[322847577,1713402631830,-111.84280245,0.0002898,2]
[322847578,1713402631842,-120.15719755,0.0002898,2]
[322847579,1713402631851,-639.93781919,0.0002898,10]
[322847620,1713402637884,-3029.8001782,0.0002898,10]
[322847621,1713402637894,-300.0,0.00029986,2]
[322847622,1713402637905,-20579.22007188,0.00029987,2]
[322847623,1713402637917,-4232.70120037,0.0003,2]
[322847624,1713402637928,-412.0,0.0003,2]
[322847625,1713402637937,-340.2450569,0.000311,2]
[322847626,1713402637946,-166.666666,0.0003137,2]
[322847628,1713402637956,-1055.73504552,0.0003188,2]
[322847630,1713402637966,-417.0,0.0003198,2]
[322847632,1713402637975,-166.666666,0.00032225,2]
[322847634,1713402637984,-257.092,0.00032374,2]
[322847636,1713402637992,-146.37657857,0.00032743,10]
[322847637,1713402638004,-1576.97738203,0.00032743,10]
[322847638,1713402638014,-420.0,0.00032985,2]
[322847639,1713402638023,-166.666666,0.00033081,2]
[322847640,1713402638036,-342.815189,0.00033165,2]
[322847641,1713402638045,-166.666666,0.00033936,2]
[322847642,1713402638055,-1280.7705,0.00033971,30]
[322847643,1713402638064,-203.2761986,0.00034178,2]
[322847644,1713402638073,-0.61299446,0.00034178,2]
[322847790,1713402643197,-465.62426375,0.00034,4]
[322847791,1713402643206,-202.66320414,0.00034178,2]
[322847792,1713402643215,-157.519236,0.00034247,2]
[322847793,1713402643225,-203.2761986,0.00034478,2]
[322847794,1713402643233,-153.0,0.00034512,2]
[322847795,1713402643242,-153.0,0.00034512,2]
[322847796,1713402643252,-153.0,0.00034512,2]
[322847797,1713402643261,-153.0,0.00034512,2]
[322847798,1713402643270,-153.0,0.00034512,2]
[322847799,1713402643280,-153.0,0.00034512,2]
[322847800,1713402643289,-153.0,0.00034512,2]
[322847801,1713402643298,-153.0,0.00034512,2]
[322847802,1713402643307,-153.0,0.00034512,2]
[322847803,1713402643316,-153.0,0.00034512,2]
[322847804,1713402643325,-153.0,0.00034512,2]
[322847805,1713402643334,-153.0,0.00034512,2]
[322847806,1713402643344,-153.0,0.00034512,2]
[322847807,1713402643353,-153.0,0.00034512,2]
[322847808,1713402643362,-153.0,0.00034512,2]
[322847809,1713402643371,-153.0,0.00034512,2]
[322847810,1713402643381,-153.0,0.00034512,2]
[322847811,1713402643390,-153.0,0.00034512,2]
[322847812,1713402643399,-153.0,0.00034512,2]
[322847813,1713402643408,-153.0,0.00034512,2]
[322847814,1713402643418,-153.0,0.00034512,2]
[322847815,1713402643427,-406.5523972,0.00034578,2]
[322847816,1713402643437,-203.2761986,0.00034578,2]
[322847817,1713402643447,-153.0,0.000347,2]
[322847818,1713402643457,-153.0,0.000347,2]
[322847819,1713402643466,-150.83408251,0.00034762,2]
[322847820,1713402643475,-250.21564279,0.00034762,2]
[322847821,1713402643485,-166.666666,0.00034791,2]
[322847822,1713402643494,-28.8030772,0.00034799,2]
[322847824,1713402643505,-1971.1969228,0.00034799,2]
[322847826,1713402643517,-4188.33280807,0.000348,18]
[322847828,1713402643527,-1000.0,0.000348,8]
[322847830,1713402643539,-1000.0,0.000348,10]
[322847832,1713402643548,-1000.0,0.000348,15]
[322847834,1713402643557,-207.84772412,0.000348,2]
[322847836,1713402643566,-306.50896017,0.00034897,7]
[322847838,1713402643575,-1637.55,0.00034898,7]
[322847840,1713402643584,-4738.07,0.00034899,2]
[322847842,1713402643593,-4738.07,0.00034899,2]
[322847844,1713402643601,-4738.07,0.00034899,2]
[322847846,1713402643610,-4738.07,0.00034899,2]
[322847848,1713402643619,-4738.07,0.00034899,2]
[322847850,1713402643628,-4738.08,0.00034899,2]
[322847852,1713402643637,-1637.55,0.00034899,7]
[322847854,1713402643646,-1637.55,0.00034899,7]
[322847856,1713402643654,-1637.55,0.00034899,7]
[322847858,1713402643665,-1637.55,0.00034899,7]
[322847860,1713402643674,-151.0,0.00034899,2]
[322847862,1713402643683,-151.0,0.00034899,2]
[322847864,1713402643692,-244.70162552,0.00034899,7]
[322847866,1713402643701,-474.3090317,0.00034899,7]
[322847868,1713402643709,-500.0,0.00034899,7]
[322847870,1713402643721,-498.66097296,0.00034899,7]
[322847872,1713402643730,-162.42917402,0.00034899,7]
[322847874,1713402643739,-330.0368148,0.00034899,7]
[322847876,1713402643748,-53204.05660046,0.000349,2]
[322848519,1713403119667,-26227.17525318,0.000262,60]
[322848520,1713403266111,300.0,0.000262,60]
[322848522,1713403645117,-300.0,0.00026199,2]
[322848523,1713403645138,-2762.57089482,0.000262,10]
[322848524,1713403748107,-300.0,0.00026199,2]
[322848525,1713403748128,-907.16710257,0.000262,10]
[322848526,1713403748263,-430.29789081,0.000262,60]
[322848527,1713403751118,-12383.28973578,0.000262,60]
[322848528,1713403751139,-171.04874,0.00027397,2]
[322848529,1713403751160,-157.5192868,0.00027397,2]
[322848530,1713403751180,-49.53188517,0.00027397,2]
[322848531,1713403757101,-156.28197083,0.00027397,2]
[322848532,1713403757122,-420.0,0.00028819,2]
[322848533,1713403812256,93.83864175,0.000241,2]
[322848534,1713403812282,156.3507885,0.000241,2]
[322848558,1713403832021,-106.23108807,0.000241,2]
[322848559,1713403832030,-305.84891193,0.00028819,14]
[322848564,1713403838125,-288.52999586,0.00028819,14]
[322848565,1713403838135,-867.42944141,0.00028819,10]
[322848748,1713403849914,-2802.97366498,0.00028819,10]
[322848749,1713403849924,-356.42051832,0.000291,2]
[322848750,1713403849933,-622.86256007,0.00032,2]
[322848751,1713403849943,-166.666666,0.00032134,2]
[322848752,1713403849954,-200.0,0.00032395,15]
[322848753,1713403849963,-167.022494,0.00032397,2]
[322848754,1713403849972,-164.428695,0.00032431,2]
[322848755,1713403849983,-166.666666,0.0003301,2]
[322848756,1713403849993,-205.813856,0.00033165,2]
[322848757,1713403850002,-153.0,0.00033256,2]
[322848758,1713403850011,-286.3948978,0.00033256,2]
[322848759,1713403850019,-153.0,0.00033256,2]
[322848760,1713403850029,-157.4099749,0.00033256,2]
[322848761,1713403850038,-166.666666,0.00033886,2]
[322848762,1713403850047,-448.42748524,0.000339,6]
[322848763,1713403850057,-153.0,0.00033978,2]
[322848764,1713403850066,-153.0,0.00033978,2]
[322848765,1713403850075,-683.6835497,0.00034,2]
[322848766,1713403850084,-300.000001,0.00034,3]
[322848767,1713403850094,-465.62426375,0.00034077,4]
[322848768,1713403850103,-185.0,0.00034078,2]
[322848769,1713403850112,-153.0,0.00034078,2]
[322848770,1713403850121,-1000.0,0.00034095,2]
[322848771,1713403850131,-356.42051832,0.000341,2]
[322848772,1713403850141,-1000.0,0.00034104,2]
[322848773,1713403850150,-1000.0,0.00034173,2]
[322848774,1713403850159,-400.0,0.00034177,2]
[322848775,1713403850169,-153.0,0.00034178,2]
[322848776,1713403850178,-150.81901718,0.00034279,2]
[322848777,1713403850187,-250.19065122,0.00034279,2]
[322848778,1713403850198,-400.0,0.000345,5]
[322848779,1713403850208,-306.0,0.00034512,2]
[322848780,1713403850219,-153.0,0.00034512,2]
[322848781,1713403850231,-153.0,0.00034512,2]
[322848782,1713403850240,-153.0,0.00034512,2]
[322848783,1713403850250,-153.0,0.00034512,2]
[322848784,1713403850259,-166.666666,0.00034762,2]
[322848785,1713403850269,-2000.0,0.000348,2]
[322848786,1713403850278,-301.63803436,0.00034855,4]
[322848787,1713403850288,-1296.39,0.00034898,7]
[322848788,1713403850297,-505.5649212,0.00034898,2]
[322848789,1713403850306,-155.06222629,0.00034898,4]